bitfinex-derivatives/quotes_SOLF0:USTF0_20241230
["timestamp","ask_amount","ask_price","bid_price","bid_amount"]
[1735544768966,8.35754721,192.25,192.17,11.35754721]
[1735544769167,8.35754721,192.27,192.19,8.35754721]
[1735544769863,2.6058,192.25,192.2,2.6062]
[1735544770062,2.6058,192.25,192.21,8.35754721]
[1735544770671,2.6056,192.26,192.21,10.96374721]
[1735544771874,2.6054,192.27,192.22,2.606]
[1735544772173,2.6054,192.27,192.22,5.606]
[1735544772666,2.6054,192.27,192.22,3.0]
[1735544772868,8.35754721,192.29,192.23,10.96344721]
[1735544773070,2.6053,192.28,192.23,10.96344721]
[1735544774379,2.6053,192.28,192.24,2.6057]
[1735544775775,8.35754721,192.29,192.23,8.35754721]
[1735544776079,2.6057,192.26,192.23,8.35754721]
[1735544776276,8.35754721,192.29,192.23,8.35754721]
[1735544776672,2.6057,192.26,192.22,3.0]
[1735544776980,8.35754721,192.27,192.21,8.35754721]
[1735544777579,2.606,192.23,192.19,8.35754721]
[1735544777779,2.606,192.23,192.2,3.0]
[1735544777976,8.35754721,192.25,192.18,7.7179]
[1735544778277,2.6062,192.22,192.18,7.7179]
[1735544779978,2.6062,192.22,192.18,3.1351]
[1735544780283,8.35754721,192.23,192.17,3.0]
[1735544780577,8.35754721,192.21,192.17,3.0]
[1735544781780,8.35754721,192.24,192.17,11.35754721]
[1735544781981,8.35754721,192.26,192.19,8.35754721]
[1735544782780,2.6059,192.24,192.19,8.35754721]
[1735544783075,8.35754721,192.26,192.19,8.35754721]
[1735544784482,2.6058,192.24,192.2,2.6063]
[1735544786186,2.6058,192.24,192.19,10.96404721]
[1735544786691,8.35754721,192.26,192.19,8.35754721]
[1735544786882,8.35754721,192.26,192.18,4.1849]
[1735544788188,2.6061,192.22,192.18,4.1849]
[1735544788385,8.35754721,192.24,192.18,1.5783]
[1735544788788,2.6065,192.2,192.18,1.5783]
[1735544791091,2.6061,192.22,192.18,1.5783]
[1735544791785,2.6063,192.21,192.18,1.5783]
[1735544791984,2.6063,192.21,192.17,11.35754721]
[1735544792691,2.6064,192.2,192.17,11.35754721]
[1735544792889,8.35754721,192.23,192.17,3.0]
[1735544793395,8.35754721,192.23,192.15,10.96454721]
[1735544793687,2.6066,192.19,192.15,10.96454721]
[1735544795791,2.6066,192.19,192.15,8.35754721]
[1735544796893,2.6064,192.2,192.16,2.6069]
[1735544797094,8.35754721,192.23,192.15,8.35754721]
[1735544797989,8.35754721,192.23,192.14,4.5839]
[1735544798190,2.6067,192.18,192.14,12.94144721]
[1735544798695,2.6067,192.18,192.14,15.54854721]
[1735544799192,2.6067,192.18,192.14,12.94144721]
[1735544799393,2.6067,192.18,192.15,2.607]
[1735544799785,8.35754721,192.21,192.15,2.607]
[1735544799990,2.6065,192.2,192.16,10.96434721]
[1735544800594,8.35754721,192.23,192.16,10.96434721]
[1735544800786,2.6066,192.19,192.16,10.96434721]
[1735544801290,2.6066,192.19,192.16,2.6068]
[1735544801893,2.6067,192.18,192.14,9.94144721]
[1735544802093,2.6067,192.18,192.14,12.94144721]
[1735544802393,2.6066,192.19,192.15,2.607]
[1735544804196,8.35754721,192.23,192.16,8.35754721]
[1735544805495,2.6064,192.21,192.16,10.96434721]
[1735544805692,8.35754721,192.23,192.16,10.96434721]
[1735544805996,8.35754721,192.23,192.16,8.35754721]
[1735544806199,2.6063,192.21,192.17,2.6068]
[1735544806400,8.35754721,192.23,192.16,8.35754721]
[1735544806592,2.6064,192.21,192.17,2.6068]
[1735544806890,2.6064,192.21,192.16,8.35754721]
[1735544807797,2.6064,192.21,192.17,2.6068]
[1735544808698,2.6064,192.2,192.16,10.96444721]
[1735544809301,2.6064,192.2,192.17,2.6068]
[1735544809703,3.0,192.29,192.16,8.35754721]
[1735544809900,8.35754721,192.26,192.18,8.35754721]
[1735544810397,8.35754721,192.24,192.18,8.35754721]
[1735544810701,8.35754721,192.24,192.17,2.6068]
[1735544811004,2.6063,192.22,192.17,2.6068]
[1735544811307,8.35754721,192.24,192.17,2.6068]
[1735544811605,2.6064,192.21,192.17,2.6068]
[1735544811794,8.35754721,192.22,192.14,12.94144721]
[1735544812394,2.6065,192.2,192.14,15.54864721]
[1735544812597,8.35754721,192.22,192.14,15.54864721]
[1735544813405,8.35754721,192.18,192.14,1.5839]
[1735544813603,8.35754721,192.16,192.1,10.16810781]
[1735544813803,8.35754721,192.14,192.1,7.16810781]
[1735544814301,2.6074,192.13,192.1,7.16810781]
[1735544814504,2.6074,192.13,192.09,1.6144]
[1735544816104,10.96474721,192.14,192.09,4.2222]
[1735544816809,10.96474721,192.14,192.09,12.57974721]
[1735544817506,2.6074,192.13,192.09,12.57974721]
[1735544817700,8.35754721,192.14,192.09,1.6144]
[1735544817907,2.6076,192.11,192.09,1.6144]
[1735544819805,2.6076,192.1,192.08,1.4769]
[1735544821001,8.35754721,192.12,192.08,1.4769]
[1735544821702,2.6075,192.11,192.08,1.4769]
[1735544821906,8.35754721,192.12,192.05,13.96574721]
[1735544822421,8.35754721,192.12,192.05,11.35754721]
[1735544823103,8.35754721,192.12,192.05,13.96584721]
[1735544823298,8.35754721,192.1,192.04,1.5419]
[1735544823905,2.6081,192.07,192.04,1.5419]
[1735544824111,8.35754721,192.08,192.03,1.5307]
[1735544824306,8.35754721,192.04,192.0,7.16810781]
[1735544824807,8.35754721,192.04,191.99,30.29073125]
[1735544825409,2.6087,192.02,191.99,30.29073125]
[1735544826005,2.6087,192.02,191.99,1.6183]
[1735544826405,8.35754721,192.04,191.99,1.6183]
[1735544827111,8.35754721,192.06,192.0,2.609]
[1735544827509,8.35754721,192.08,192.01,8.35754721]
[1735544827715,8.35754721,192.1,192.03,8.35754721]
[1735544828310,2.6078,192.09,192.03,10.96604721]
[1735544828713,8.35754721,192.12,192.05,8.35754721]
[1735544828915,10.96494721,192.12,192.07,2.608]
[1735544829115,8.35754721,192.12,192.05,8.35754721]
[1735544830115,2.6076,192.1,192.06,2.6081]
[1735544830613,2.6078,192.09,192.04,3.0]
[1735544831214,2.6078,192.09,192.05,2.6083]
[1735544832712,8.35754721,192.12,192.05,8.35754721]
[1735544832912,8.35754721,192.12,192.05,9.85044721]
[1735544833310,10.96504721,192.12,192.07,2.608]
[1735544834011,2.6075,192.11,192.07,2.608]
[1735544836409,2.6075,192.11,192.05,9.85044721]
[1735544836609,2.6077,192.1,192.06,2.6082]
[1735544836919,8.35754721,192.12,192.05,9.85044721]
[1735544837114,8.35754721,192.1,192.05,1.4929]
[1735544839018,8.35754721,192.08,192.02,3.0]
[1735544839320,8.35754721,192.08,192.01,8.35754721]
[1735544839520,8.35754721,192.06,191.99,9.97584721]
[1735544839720,8.35754721,192.04,191.99,3.0]
[1735544840021,2.6087,192.03,191.99,3.0]
[1735544840420,8.35754721,192.02,191.99,3.0]
[1735544840621,2.6091,191.99,191.94,31.28213125]
[1735544840821,2.6091,191.99,191.95,3.0]
[1735544841515,2.6092,191.99,191.94,28.67243125]
[1735544841812,5.2142,192.15,191.92,14.37924721]
[1735544841813,8.35754721,191.98,191.92,14.37924721]
[1735544842121,8.35754721,191.98,191.92,6.0217]
[1735544842721,8.35754721,191.98,191.92,8.6318]
[1735544843119,2.6094,191.97,191.92,8.6318]
[1735544843516,2.6094,191.97,191.92,16.98934721]
[1735544845716,8.35754721,191.98,191.92,8.6318]
[1735544845920,2.6096,191.96,191.92,8.6318]
[1735544846423,2.6096,191.96,191.92,5.6318]
[1735544848523,10.96714721,191.96,191.92,5.6318]
[1735544848723,2.6097,191.95,191.92,3.0217]
[1735544849527,8.35754721,191.96,191.92,5.6317]
[1735544852920,8.35754721,191.98,191.92,3.0217]
[1735544853126,8.35754721,192.02,191.95,8.35754721]
[1735544853325,8.35754721,192.04,191.97,8.35754721]
[1735544853631,10.96604721,192.04,191.99,2.6091]
[1735544854722,8.35754721,192.06,192.01,8.35754721]
[1735544855026,8.35754721,192.06,192.01,11.35754721]
[1735544855926,8.35754721,192.06,192.02,2.6087]
[1735544857320,8.35754721,192.06,192.01,3.0]
[1735544857529,8.35754721,192.08,192.01,11.35754721]
[1735544857726,8.35754721,192.08,192.02,3.184]
[1735544858426,8.35754721,192.08,192.04,2.6084]
[1735544859727,10.96544721,192.08,192.04,2.6084]
[1735544860226,8.35754721,192.08,192.02,3.184]
[1735544860428,8.35754721,192.08,192.02,5.7927]
[1735544860828,8.35754721,192.06,192.02,5.7927]
[1735544861129,10.96584721,192.06,192.02,3.184]
[1735544862422,8.35754721,192.06,192.02,3.184]
[1735544863224,8.35754721,192.06,192.02,5.7927]
[1735544863626,2.6082,192.07,192.02,3.184]
[1735544864534,2.6082,192.07,192.03,2.6085]
[1735544871334,2.6084,192.05,192.02,3.184]
[1735544872634,2.6085,192.05,192.02,3.184]
[1735544872834,8.35754721,192.06,192.02,3.184]
[1735544873134,8.35754721,192.08,192.02,3.184]
[1735544873835,10.96564721,192.08,192.04,2.6084]
[1735544874340,8.35754721,192.08,192.04,2.6084]
[1735544874638,2.6081,192.07,192.04,2.6084]
[1735544878141,2.6081,192.07,192.03,2.6087]
[1735544880546,2.6084,192.06,192.03,2.6087]
[1735544882553,2.6082,192.07,192.03,2.6087]
[1735544883356,8.35754721,192.08,192.02,3.184]
[1735544883655,8.35754721,192.08,192.04,2.6085]
[1735544883857,8.35754721,192.08,192.02,3.184]
[1735544885156,38.9820808,192.2,192.02,3.184]
[1735544885355,8.35754721,192.11,192.05,8.35754721]
[1735544885652,8.35754721,192.11,192.06,3.0]
[1735544886457,8.35754721,192.13,192.07,8.35754721]
[1735544888460,10.96494721,192.13,192.09,2.6079]
[1735544891765,2.6075,192.12,192.08,2.608]
[1735544895859,8.35754721,192.13,192.07,8.35754721]
[1735544896567,8.35754721,192.13,192.06,5.6082]
[1735544896767,8.35754721,192.13,192.07,3.0]
[1735544897167,8.35754721,192.11,192.07,3.0]
[1735544897566,8.35754721,192.11,192.06,2.6082]
[1735544897765,8.35754721,192.09,192.03,8.35754721]
[1735544897966,2.6084,192.06,192.02,6.184]
[1735544899271,2.6084,192.06,192.03,2.6087]
[1735544899671,2.6084,192.06,192.02,6.184]
[1735544899872,2.6084,192.06,192.02,8.7929]
[1735544900067,2.6085,192.05,192.02,3.184]
[1735544900771,8.35754721,192.07,192.02,3.184]
[1735544900971,2.6087,192.04,192.01,3.0]
[1735544902073,2.6087,192.04,191.99,9.96224721]
[1735544902272,2.6087,192.04,192.0,3.0]
[1735544902472,2.6087,192.04,192.0,5.6091]
[1735544903974,2.6087,192.04,192.0,2.6091]
[1735544904176,2.6087,192.04,192.01,3.0]
[1735544904770,2.6084,192.06,192.03,2.6088]
[1735544907578,2.6086,192.04,192.03,3.0]
[1735544907881,8.35754721,192.07,192.03,3.0]
[1735544908375,2.6084,192.06,192.01,8.35754721]
[1735544908582,8.35754721,192.07,192.02,3.0]
[1735544909079,2.6088,192.04,192.02,3.0]
[1735544909279,8.35754721,192.07,192.02,3.0]
[1735544909778,8.35754721,192.05,191.97,11.45994721]
[1735544909979,8.35754721,192.03,191.98,3.0]
[1735544910381,2.6091,192.01,191.98,3.0]
[1735544910783,2.6091,192.01,191.97,14.06944721]
[1735544910986,8.35754721,192.03,191.97,14.06944721]
[1735544910987,2.6093,192.0,191.97,3.1024]
[1735544913983,8.35754721,192.05,191.97,11.45994721]
[1735544914288,8.35754721,192.05,191.99,8.35754721]
[1735544914481,8.35754721,192.05,191.97,3.1024]
[1735544914785,8.35754721,192.05,191.99,8.35754721]
[1735544916589,10.96604721,192.05,192.01,2.6089]
[1735544916786,10.96604721,192.05,192.01,5.6089]
[1735544917581,8.35754721,192.05,192.01,3.0]
[1735544917980,8.35754721,192.05,191.99,5.6092]
[1735544918589,2.6088,192.03,191.99,5.6092]
[1735544919188,2.609,192.02,191.99,3.0]
[1735544921693,8.35754721,192.01,191.97,3.0]
[1735544921891,8.35754721,192.01,191.96,3.0]
[1735544922289,8.35754721,192.01,191.95,11.35754721]
[1735544922587,2.6093,191.99,191.95,13.96724721]
[1735544923897,8.35754721,192.01,191.96,2.6097]
[1735544924197,2.6092,192.0,191.95,11.35754721]
[1735544925400,2.6092,192.0,191.96,2.6097]
[1735544926697,8.35754721,192.01,191.95,8.35754721]
[1735544926898,2.6096,191.97,191.93,8.35754721]
[1735544927097,8.35754721,191.99,191.95,3.0]
[1735544927600,8.35754721,191.99,191.92,3.1469]
[1735544927797,2.6097,191.96,191.92,5.7572]
[1735544928102,8.35754721,191.97,191.92,8.7572]
[1735544928500,2.61,191.94,191.92,6.1469]
[1735544929399,2.6101,191.93,191.91,3.0]
[1735544930505,2.6101,191.93,191.9,5.6105]
[1735544932598,2.6103,191.92,191.9,3.0]
[1735544934103,2.6103,191.92,191.87,49.15775108]
[1735544934104,2.6105,191.9,191.87,51.76865108]
[1735544934402,2.6105,191.9,191.87,2.6109]
[1735544935300,8.35754721,191.91,191.87,2.6109]
[1735544935506,2.6104,191.91,191.87,2.6109]
[1735544936404,8.35754721,191.91,191.86,3.0]
[1735544937011,8.35754721,191.89,191.84,3.0]
[1735544937809,8.35754721,191.92,191.86,8.35754721]
[1735544938107,3.0,191.97,191.86,8.35754721]
[1735544938308,8.35754721,191.93,191.86,8.35754721]
[1735544938711,3.0,191.97,191.86,8.35754721]
[1735544938908,8.35754721,191.93,191.86,8.35754721]
[1735544939412,2.6103,191.92,191.88,2.6108]
[1735544939709,8.35754721,191.93,191.86,8.35754721]
[1735544942506,2.6101,191.92,191.88,2.6106]
[1735544942904,2.6095,191.97,191.9,2.6103]
[1735544943209,8.35754721,191.96,191.89,3.0]
[1735544943713,2.66775676,192.0,191.9,8.35754721]
[1735544943907,8.35754721,191.99,191.9,8.35754721]
[1735544944108,8.35754721,191.99,191.92,8.35754721]
[1735544944307,8.35754721,191.99,191.95,2.6097]
[1735544944911,2.609,192.01,191.94,11.35754721]
[1735544945812,2.6091,192.0,191.96,2.6095]
[1735544947313,10.96664721,192.0,191.96,2.6095]
[1735544948805,2.6087,192.03,191.97,8.35754721]
[1735544949011,8.35754721,192.04,191.97,8.35754721]
[1735544949411,8.35754721,192.04,191.98,3.0874]
[1735544949614,8.35754721,192.04,192.0,2.6089]
[1735544950118,2.96604721,192.04,192.0,2.6089]
[1735544950416,8.35754721,192.03,191.99,5.6091]
[1735544951213,8.35754721,192.05,191.99,3.0]
[1735544952412,8.35754721,192.01,191.96,3.0]
[1735544952616,8.35754721,191.99,191.96,3.0]
[1735544953015,10.96684721,191.99,191.96,3.0]
[1735544955119,8.35754721,191.99,191.96,3.0]
[1735544956118,8.35754721,191.99,191.96,5.6095]
[1735544956519,8.35754721,192.03,191.99,2.6091]
[1735544956718,8.35754721,192.03,191.96,3.0]
[1735544956919,8.35754721,192.01,191.96,3.0]
[1735544957118,8.35754721,192.03,191.96,11.35754721]
[1735544957819,8.35754721,192.03,191.98,2.6093]
[1735544957820,2.6088,192.02,191.98,2.6093]
[1735544960927,10.96614721,192.03,191.99,2.6091]
[1735544961523,2.6088,192.02,191.98,2.6093]
[1735544962624,2.6089,192.01,191.96,11.35754721]
[1735544962930,8.35754721,192.01,191.96,3.0]
[1735544963323,2.6093,191.99,191.96,3.0]
[1735544963718,2.6093,191.98,191.96,3.0]
[1735544964029,8.35754721,191.97,191.93,3.0]
[1735544964528,2.6097,191.95,191.93,3.0]
[1735544965333,2.6096,191.96,191.93,3.0]
[1735544965523,2.6096,191.96,191.93,5.61]
[1735544966022,2.6097,191.95,191.93,3.0]
[1735544966226,8.35754721,191.97,191.93,3.0]
[1735544967123,2.6097,191.95,191.93,3.0]
[1735544967431,8.35754721,191.97,191.93,3.0]
[1735544967830,2.6096,191.96,191.93,3.0]
[1735544968033,8.35754721,192.01,191.93,3.0]
[1735544968534,2.6091,192.0,191.96,2.6096]
[1735544973838,2.6091,192.0,191.96,5.6096]
[1735544974236,2.6092,191.99,191.96,5.6096]
[1735544974529,8.35754721,192.01,191.96,5.6096]
[1735544974733,8.35754721,191.99,191.96,5.6096]
[1735544974935,8.35754721,191.99,191.91,3.0469]
[1735544975237,8.35754721,191.97,191.92,3.0]
[1735544976438,2.6096,191.96,191.92,5.6101]
[1735544977532,2.6096,191.96,191.93,2.61]
[1735544979839,8.35754721,191.97,191.91,3.0469]
[1735544980035,8.35754721,191.97,191.91,6.0469]
[1735544980340,8.35754721,191.97,191.91,3.0469]
[1735544980537,8.35754721,191.97,191.91,6.0469]
[1735544980942,2.6098,191.95,191.91,8.6571]
[1735544982839,0.6098,191.95,191.91,8.6571]
[1735544983039,8.35754721,191.99,191.92,8.35754721]
[1735544983549,2.6094,191.98,191.94,2.6097]
[1735544985247,2.6095,191.97,191.92,10.96754721]
[1735544985446,8.35754721,191.99,191.92,10.96754721]
[1735544986447,2.6095,191.97,191.93,2.6099]
[1735544986751,8.35754721,191.99,191.93,2.6099]
[1735544987048,8.35754721,192.01,191.94,8.35754721]
[1735544987252,2.609,192.0,191.96,2.6095]
[1735544987451,2.609,192.0,191.96,5.6095]
[1735544987947,2.6092,191.99,191.96,5.6095]
[1735544988147,8.35754721,191.99,191.96,3.0]
[1735544988949,2.6094,191.97,191.96,3.0]
[1735544989150,8.35754721,191.99,191.96,3.0]
[1735544989751,8.35754721,192.0,191.96,3.0]
[1735544990455,2.6094,191.98,191.96,3.0]
[1735544990653,8.35754721,192.0,191.96,3.0]
[1735544991254,2.6094,191.98,191.96,3.0]
[1735544991656,8.35754721,192.0,191.96,3.0]
[1735544992154,2.6094,191.98,191.96,3.0]
[1735544992748,8.35754721,192.0,191.96,3.0]
[1735544993553,8.35754721,191.98,191.91,3.0469]
[1735544993755,8.35754721,191.96,191.91,6.0469]
[1735544994056,2.6104,191.9,191.89,28.67243125]
[1735544994358,10.96794721,191.9,191.89,28.67243125]
[1735544994757,8.35754721,191.9,191.84,31.67243125]
[1735544995554,2.6107,191.88,191.84,31.67243125]
[1735544996056,2.6107,191.88,191.84,3.0]
[1735544996254,8.35754721,191.92,191.85,8.35754721]
[1735544996856,10.96774721,191.92,191.87,2.6107]
[1735544998653,2.6103,191.91,191.87,2.6107]
[1735545000560,8.35754721,191.92,191.87,2.6107]
[1735545000760,8.35754721,191.92,191.85,8.35754721]
[1735545001560,2.6104,191.9,191.85,8.35754721]
[1735545001854,8.35754721,191.92,191.85,8.35754721]
[1735545002459,2.6104,191.9,191.86,2.6109]
[1735545002659,8.35754721,191.92,191.86,2.6109]
[1735545003451,2.6104,191.9,191.86,2.6109]
[1735545003657,0.6104,191.9,191.86,2.6109]
[1735545003851,8.35754721,191.92,191.86,2.6109]
[1735545004659,8.35754721,191.92,191.85,8.35754721]
[1735545004956,8.35754721,191.9,191.85,5.6111]
[1735545005363,8.35754721,191.9,191.85,2.6111]
[1735545005660,2.6106,191.89,191.85,2.6111]
[1735545005860,8.35754721,191.92,191.85,2.6111]
[1735545006062,3.0,191.98,191.84,3.0]
[1735545006063,8.35754721,191.9,191.84,3.0]
[1735545006260,8.35754721,191.88,191.84,3.0]
[1735545006463,2.6109,191.87,191.84,3.0]
[1735545006659,2.6109,191.87,191.83,6.1987]
[1735545007057,8.35754721,191.88,191.83,6.1987]
[1735545007264,8.35754721,191.88,191.83,3.1987]
[1735545007862,2.6109,191.87,191.83,5.8101]
[1735545008061,8.35754721,191.88,191.77,82.89243125]
[1735545008261,8.35754721,191.86,191.78,3.0]
[1735545008461,2.6116,191.82,191.78,5.612]
[1735545008765,8.35754721,191.84,191.78,5.612]
[1735545009064,8.35754721,191.84,191.78,9.6022019]
[1735545009456,2.6116,191.82,191.78,9.6022019]
[1735545009656,8.35754721,191.82,191.78,3.9902019]
[1735545010059,2.6119,191.8,191.78,3.9902019]
[1735545010264,8.35754721,191.82,191.77,3.0255]
[1735545010663,8.35754721,191.82,191.76,3.0]
[1735545010866,8.35754721,191.8,191.75,1.5412]
[1735545011063,8.35754721,191.78,191.74,31.67243125]
[1735545011562,8.35754721,191.78,191.74,3.0]
[1735545012364,2.6124,191.77,191.74,3.0]
[1735545012756,8.35754721,191.78,191.74,3.0]
[1735545012963,8.35754721,191.8,191.74,3.0]
[1735545013159,3.0,191.88,191.75,8.35754721]
[1735545013360,2.6117,191.81,191.75,8.35754721]
[1735545014470,2.6117,191.81,191.76,2.6124]
[1735545016763,2.6119,191.8,191.75,10.97004721]
[1735545017071,2.6119,191.8,191.75,8.35754721]
[1735545018464,8.35754721,191.83,191.77,8.35754721]
[1735545019272,2.6117,191.82,191.77,10.96974721]
[1735545019473,8.35754721,191.83,191.77,10.96974721]
[1735545019674,2.6118,191.81,191.77,8.35754721]
[1735545019874,3.0,191.89,191.75,1.6236]
[1735545019875,3.0,191.89,191.75,9.98114721]
[1735545020077,8.35754721,191.83,191.75,9.98114721]
[1735545020372,8.35754721,191.83,191.77,8.35754721]
[1735545020864,0.35754721,191.83,191.77,8.35754721]
[1735545021174,2.96894721,191.83,191.79,2.6119]
[1735545021669,8.35754721,191.85,191.79,11.35754721]
[1735545021869,0.35754721,191.85,191.79,11.35754721]
[1735545022074,0.35754721,191.85,191.8,3.1041]
[1735545022579,10.96834721,191.87,191.83,2.6113]
[1735545024469,8.35754721,191.87,191.82,2.6114]
[1735545024671,2.6109,191.86,191.82,2.6114]
[1735545026683,8.35754721,191.87,191.82,2.6114]
[1735545027481,2.6109,191.86,191.82,2.6114]
[1735545027783,8.35754721,191.87,191.82,2.6114]
[1735545028485,2.6109,191.86,191.82,2.6114]
[1735545028785,8.35754721,191.87,191.82,2.6114]
[1735545029379,8.35754721,191.85,191.8,6.1041]
[1735545029783,2.6113,191.84,191.8,6.1041]
[1735545029983,8.35754721,191.85,191.8,6.1041]
[1735545030279,2.6116,191.81,191.8,3.0]
[1735545030480,8.35754721,191.81,191.77,3.0]
[1735545031181,2.612,191.79,191.77,3.0]
[1735545036592,8.35754721,191.81,191.77,3.0]
[1735545037594,2.6118,191.8,191.77,3.0]
[1735545038188,8.35754721,191.81,191.77,3.0]
[1735545038390,2.6119,191.79,191.77,3.0]
[1735545038591,8.35754721,191.81,191.77,3.0]
[1735545040584,3.0,191.91,191.8,2.6117]
[1735545040789,8.35754721,191.86,191.8,2.6117]
[1735545042193,8.35754721,191.86,191.79,8.35754721]
[1735545042392,8.35754721,191.86,191.81,2.6116]
[1735545043183,21.51017538,191.99,191.82,3.0]
[1735545043387,8.35754721,191.9,191.83,8.35754721]
[1735545043785,8.35754721,191.9,191.85,2.611]
[1735545045494,8.35754721,191.9,191.83,8.35754721]
[1735545045495,8.35754721,191.88,191.83,2.6112]
[1735545045694,8.35754721,191.88,191.82,6.1418]
[1735545045997,8.35754721,191.88,191.83,2.6113]
[1735545046495,8.35754721,191.88,191.84,2.6112]
[1735545046693,8.35754721,191.9,191.83,8.35754721]
[1735545048487,8.35754721,191.9,191.86,2.6108]
[1735545048894,8.35754721,191.9,191.83,8.35754721]
[1735545049097,8.35754721,191.9,191.87,2.6108]
[1735545049698,8.35754721,191.88,191.87,2.6108]
[1735545050297,3.0,191.96,191.83,8.35754721]
[1735545050298,8.35754721,191.9,191.83,8.35754721]
[1735545050899,8.35754721,191.9,191.89,2.6105]
[1735545053196,3.0,191.97,191.85,8.35754721]
[1735545053399,8.35754721,191.93,191.92,2.61]
[1735545054302,8.35754721,191.95,191.94,2.6098]
[1735545057208,8.35754721,191.95,191.93,2.61]
[1735545057411,8.35754721,191.94,191.93,2.61]
[1735545057706,8.35754721,191.94,191.89,3.0]
[1735545057908,8.35754721,191.94,191.92,2.6101]
[1735545059102,8.35754721,191.94,191.89,3.0]
[1735545059410,8.35754721,191.94,191.93,2.61]
[1735545061309,8.35754721,191.94,191.89,3.0]
[1735545061510,8.35754721,191.91,191.89,3.0]
[1735545062211,8.35754721,191.93,191.89,3.0]
[1735545062607,8.35754721,191.95,191.89,3.0]
[1735545063911,8.35754721,191.95,191.93,2.6099]
[1735545064711,8.35754721,191.95,191.94,2.6098]
[1735545070917,39.01526846,192.01,191.89,11.35754721]
[1735545071112,39.01526846,192.01,191.97,2.6094]
[1735545071318,8.35754721,191.97,191.91,8.35754721]
[1735545071516,8.35754721,191.99,191.91,8.35754721]
[1735545071817,8.35754721,191.99,191.98,2.6092]
[1735545074215,8.35754721,191.99,191.94,3.0]
[1735545077215,2.6094,191.98,191.9,4.6445]
[1735545077419,8.35754721,191.95,191.91,3.0]
[1735545080121,8.35754721,191.93,191.86,10.96844721]
[1735545080322,8.35754721,191.93,191.87,3.0]
[1735545081621,8.35754721,191.93,191.86,10.96844721]
[1735545081921,10.96754721,191.93,191.87,3.0]
[1735545083117,2.6102,191.92,191.87,3.0]
[1735545083519,2.6102,191.92,191.86,10.96844721]
[1735545083726,2.6102,191.92,191.87,3.0]
[1735545084020,2.6103,191.91,191.87,3.0]
[1735545085030,2.6104,191.9,191.87,3.0]
[1735545085218,8.35754721,191.93,191.87,3.0]
[1735545085937,2.6106,191.89,191.87,3.0]
[1735545086243,8.35754721,191.93,191.87,3.0]
[1735545086548,10.96764721,191.93,191.87,3.0]
[1735545087051,10.96764721,191.93,191.87,5.6108]
[1735545087350,2.6102,191.92,191.87,5.6108]
[1735545087933,2.6103,191.91,191.87,3.0]
[1735545096329,2.6103,191.91,191.87,5.6108]
[1735545096727,3.0,192.0,191.88,8.35754721]
[1735545097026,8.35754721,191.96,191.88,8.35754721]
[1735545098427,8.35754721,191.94,191.87,3.0]
[1735545098629,8.35754721,191.94,191.86,8.35754721]
[1735545098833,8.35754721,191.92,191.86,3.0]
[1735545100537,8.35754721,191.92,191.85,8.35754721]
[1735545100833,8.35754721,191.9,191.84,7.7874]
[1735545101237,8.35754721,191.9,191.84,4.7874]
[1735545101434,8.35754721,191.9,191.84,7.7874]
[1735545102529,8.35754721,191.9,191.84,6.168]
[1735545102731,8.35754721,191.88,191.84,3.0]
[1735545102930,8.35754721,191.88,191.81,11.35754721]
[1735545104840,8.35754721,191.86,191.8,3.0]
[1735545105236,8.35754721,191.86,191.79,13.01834721]
[1735545105434,8.35754721,191.84,191.77,18.59497299]
[1735545106134,8.35754721,191.84,191.77,11.35754721]
[1735545109942,8.35754721,191.84,191.77,8.35754721]
[1735545110644,8.35754721,191.84,191.76,3.0]
[1735545111450,3.0,191.88,191.76,3.0]
[1735545111451,8.35754721,191.82,191.76,3.0]
[1735545113154,8.35754721,191.86,191.79,10.96924721]
[1735545114055,8.35754721,191.86,191.79,8.35754721]
[1735545114255,8.35754721,191.86,191.8,5.706]
[1735545116060,8.35754721,191.86,191.81,3.0]